[Event "SVK Amateur-ch 2020"]
[Site "Topolcany"]
[Date "2020.07.11"]
[Round "3.30"]
[White "Pejko, Otomar"]
[Black "Juan Lepp, Jaime Boris"]
[Result "1-0"]
[ECO "A06"]
[WhiteElo "2138"]
[BlackElo "1853"]
[Annotator "ChessBase"]
[PlyCount "99"]
[EventDate "2020.07.10"]
[EventType "swiss"]
[EventCountry "SVK"]
[SourceTitle "playchess.com"]
[Source "ChessBase"]
[SourceQuality "1"]
[TimeControl "3600+30"]

1. Nf3 {[%emt 0:00:00]} d5 {[%emt 0:00:00]} 2. e4 {[%emt 0:00:44]} dxe4 {[%emt 0:00:00]} 3. Ng5 {[%emt 0:00:02]} e5 {[%emt 0:00:15]} 4. Nxe4 {[%emt 0:00:47]} Nc6 {[%emt 0:00:42]} 5. Bc4 {[%emt 0:00:34]} Be7 {[%emt 0:04:47]} 6. Nbc3 {[%emt 0:01:34]} Nf6 {[%emt 0:00:38]} 7. O-O {[%emt 0:03:20]} O-O {[%emt 0:01:32]} 8. a3 {[%emt 0:03:09]} Bf5 {[%emt 0:02:01]} 9. d3 {[%emt 0:06:14]} Nxe4 {[%emt 0:02:03]} 10. Nxe4 {[%emt 0:00:07]} Bxe4 {[%emt 0:06:09]} 11. dxe4 {[%emt 0:00:04]} Qxd1 {[%emt 0:03:02]} 12. Rxd1 {[%emt 0:00:02]} Rfd8 {[%emt 0:06:25]} 13. Be3 {[%emt 0:07:50]} Rxd1+ {[%emt 0:02:19]} 14. Rxd1 {[%emt 0:00:03]} Rd8 {[%emt 0:00:02]} 15. Rxd8+ {[%emt 0:02:10]} Nxd8 {[%emt 0:01:07]} 16. Bxa7 {[%emt 0:07:06]} b6 {[%emt 0:00:38]} 17. Bd5 {[%emt 0:00:05]} Ne6 {[%emt 0:02:35]} 18. Bxe6 {[%emt 0:08:07]} fxe6 {[%emt 0:00:01]} 19. c3 {[%emt 0:00:33]} Kf8 {[%emt 0:00:39]} 20. a4 {[%emt 0:00:06]} Ke8 {[%emt 0:00:18]} 21. b4 {[%emt 0:01:03]} Kd7 {[%emt 0:00:49]} 22. a5 {[%emt 0:00:06]} Kc6 {[%emt 0:01:48]} 23. a6 {[%emt 0:15:12]} Kb5 {[%emt 0:01:25]} 24. Bb8 {[%emt 0:00:02]} Kxa6 {[%emt 0:00:10]} 25. Bxc7 {[%emt 0:00:02]} Bf6 {[%emt 0:00:31]} 26. Kf1 {[%emt 0:02:49]} Kb7 {[%emt 0:03:41]} 27. Bd6 {[%emt 0:00:34]} Kc6 {[%emt 0:00:38]} 28. Bf8 {[%emt 0:00:07]} Kb5 {[%emt 0:00:37]} 29. Ke2 {[%emt 0:03:45]} Kc4 {[%emt 0:00:38]} 30. Kd2 {[%emt 0:00:02]} h5 {[%emt 0:00:54]} 31. f3 {[%emt 0:01:42]} g6 {[%emt 0:01:25]} 32. Bh6 {[%emt 0:00:43]} b5 {[%emt 0:00:24]} 33. Bf8 {[%emt 0:01:36]} Bg5+ {[%emt 0:00:33]} 34. Kc2 {[%emt 0:00:05]} Bf6 {[%emt 0:00:23]} 35. Bd6 {[%emt 0:00:24]} Bg7 {[%emt 0:00:51]} 36. g4 {[%emt 0:00:38]} Bf6 {[%emt 0:02:05]} 37. h3 {[%emt 0:00:09]} hxg4 38. fxg4 {[%emt 0:00:20]} g5 {[%emt 0:02:28]} 39. Kd2 {[%emt 0:00:55]} Bd8 {[%emt 0:00:43]} 40. Bxe5 {[%emt 0:00:14]} Be7 {[%emt 0:00:10]} 41. Bg7 {[%emt 0:00:36]} Bd8 {[%emt 0:01:33]} 42. e5 {[%emt 0:03:53]} Kd5 {[%emt 0:00:59]} 43. Bf6 {[%emt 0:00:26]} Bb6 {[%emt 0:00:54]} 44. Kd3 {[%emt 0:00:31]} Bf2 {[%emt 0:00:29]} 45. Bxg5 {[%emt 0:00:12]} Kxe5 {[%emt 0:00:06]} 46. Be3 {[%emt 0:00:23]} Bg3 {[%emt 0:00:23]} 47. c4 {[%emt 0:00:59]} bxc4+ {[%emt 0:00:10]} 48. Kxc4 {[%emt 0:00:01]} Kd6 {[%emt 0:00:15]} 49. b5 {[%emt 0:00:21]} Be5 {[%emt 0:01:00]} 50. h4 1-0

[Event "SVK Amateur-ch 2020"]
[Site "Topolcany"]
[Date "2020.07.11"]
[Round "3.31"]
[White "Marsina, Stefan"]
[Black "Bielik, Miroslav"]
[Result "1-0"]
[ECO "D31"]
[WhiteElo "1829"]
[BlackElo "2133"]
[Annotator "ChessBase"]
[PlyCount "69"]
[EventDate "2020.07.10"]
[EventType "swiss"]
[EventCountry "SVK"]
[SourceTitle "playchess.com"]
[Source "ChessBase"]
[SourceQuality "1"]
[TimeControl "3600+30"]

1. c4 {[%emt 0:00:00]} e6 {[%emt 0:00:01]} 2. d4 {[%emt 0:00:19]} d5 {[%emt 0:00:04]} 3. Nc3 {[%emt 0:00:48]} c6 {[%emt 0:00:05]} 4. cxd5 {[%emt 0:04:17]} exd5 {[%emt 0:00:08]} 5. Nf3 {[%emt 0:00:47]} Bf5 {[%emt 0:00:14]} 6. e3 {[%emt 0:00:24]} Nd7 {[%emt 0:00:14]} 7. Bd3 {[%emt 0:00:11]} Bxd3 {[%emt 0:00:39]} 8. Qxd3 {[%emt 0:00:02]} Ngf6 {[%emt 0:00:09]} 9. O-O {[%emt 0:01:14]} Bb4 {[%emt 0:00:24]} 10. Bd2 {[%emt 0:02:30]} O-O {[%emt 0:00:06]} 11. a3 {[%emt 0:02:12]} Bd6 {[%emt 0:01:09]} 12. b4 {[%emt 0:01:59]} Qe7 {[%emt 0:01:20]} 13. b5 {[%emt 0:14:03]} Nb6 {[%emt 0:10:20]} 14. a4 {[%emt 0:07:50]} Ne4 {[%emt 0:08:23]} 15. Rfb1 {[%emt 0:08:27]} f5 {[%emt 0:06:45]} 16. a5 {[%emt 0:02:05]} Nc4 {[%emt 0:00:46]} 17. a6 {[%emt 0:00:23]} Na3 {[%emt 0:03:25]} 18. Rxa3 {[%emt 0:11:14]} Bxa3 {[%emt 0:00:52]} 19. axb7 {[%emt 0:01:05]} Qxb7 {[%emt 0:00:43]} 20. bxc6 {[%emt 0:00:09]} Qxc6 {[%emt 0:00:12]} 21. Ne5 {[%emt 0:00:20]} Qd6 {[%emt 0:02:15]} 22. Nb5 {[%emt 0:00:29]} Qa6 {[%emt 0:00:16]} 23. Be1 {[%emt 0:03:22]} Be7 {[%emt 0:03:04]} 24. Qb3 {[%emt 0:01:20]} Qb7 {[%emt 0:01:26]} 25. f3 {[%emt 0:04:08]} Nf6 {[%emt 0:00:16]} 26. Qd3 {[%emt 0:00:11]} g6 {[%emt 0:01:49]} 27. Ba5 {[%emt 0:00:47]} Rab8 {[%emt 0:03:25]} 28. Nc3 {[%emt 0:00:37]} Qc8 {[%emt 0:00:16]} 29. Rxb8 {[%emt 0:01:29]} Qxb8 {[%emt 0:00:02]} 30. Qa6 {[%emt 0:01:15]} Bd6 {[%emt 0:05:44]} 31. Nc6 Qc8 32. Qb5 {[%emt 0:00:59]} Qd7 {[%emt 0:00:01]} 33. Nxd5 {[%emt 0:00:56]} Bxh2+ {[%emt 0:00:19]} 34. Kxh2 {[%emt 0:00:02]} Qxd5 {[%emt 0:00:10]} 35. Ne7+ {[%emt 0:00:04]} 1-0

[Event "SVK Amateur-ch 2020"]
[Site "Topolcany"]
[Date "2020.07.11"]
[Round "3.32"]
[White "Gyurika, Tamas"]
[Black "Nikanova, Ekaterina"]
[Result "0-1"]
[ECO "B23"]
[WhiteElo "1851"]
[BlackElo "2116"]
[Annotator "ChessBase"]
[PlyCount "42"]
[EventDate "2020.07.10"]
[EventType "swiss"]
[EventCountry "SVK"]
[SourceTitle "playchess.com"]
[Source "ChessBase"]
[SourceQuality "1"]
[TimeControl "3600+30"]

1. e4 {[%emt 0:00:00]} c5 {[%emt 0:00:00]} 2. Nc3 {[%emt 0:00:00]} g6 {[%emt 0:00:00]} 3. f4 {[%emt 0:00:00]} Bg7 {[%emt 0:00:00]} 4. Nf3 {[%emt 0:00:04]} Nc6 {[%emt 0:00:00]} 5. Bc4 {[%emt 0:00:07]} e6 {[%emt 0:00:38]} 6. O-O {[%emt 0:00:16]} Nge7 {[%emt 0:00:09]} 7. d3 {[%emt 0:00:11]} O-O {[%emt 0:00:05]} 8. Qe1 {[%emt 0:00:05]} Nd4 {[%emt 0:04:44]} 9. f5 {[%emt 0:02:22]} Nec6 {[%emt 0:15:03]} 10. Qg3 {[%emt 0:02:55]} d5 {[%emt 0:12:16]} 11. f6 {[%emt 0:15:54]} Bxf6 {[%emt 0:04:28]} 12. exd5 {[%emt 0:00:30]} Nxf3+ {[%emt 0:02:31]} 13. Rxf3 {[%emt 0:03:31]} Bh4 {[%emt 0:07:50]} 14. Qf4 {[%emt 0:08:29]} e5 {[%emt 0:00:26]} 15. Qxf7+ {[%emt 0:04:53]} Rxf7 {[%emt 0:00:47]} 16. dxc6 {[%emt 0:00:16]} Bf5 {[%emt 0:05:06]} 17. Bh6 {[%emt 0:01:12]} bxc6 {[%emt 0:02:34]} 18. Ne4 {[%emt 0:01:13]} Qd4+ {[%emt 0:02:19]} 19. Re3 {[%emt 0:02:24]} Bxe4 {[%emt 0:03:25]} 20. Bxf7+ {[%emt 0:01:32]} Kxf7 {[%emt 0:00:03]} 21. dxe4 {[%emt 0:00:09]} g5 {[%emt 0:00:19]} 0-1

[Event "SVK Amateur-ch 2020"]
[Site "Topolcany"]
[Date "2020.07.13"]
[Round "4.1"]
[White "Bakalar, Jan"]
[Black "Panko, Radoslav"]
[Result "0-1"]
[ECO "A97"]
[WhiteElo "1900"]
[BlackElo "2031"]
[Annotator "ChessBase"]
[PlyCount "130"]
[EventDate "2020.07.10"]
[EventType "swiss"]
[EventCountry "SVK"]
[TimeControl "3600+30"]

1. d4 {[%emt 0:00:00]} e6 {[%emt 0:00:10]} 2. Nf3 {[%emt 0:00:54]} f5 {[%emt 0:00:19]} 3. g3 {[%emt 0:01:08]} Nf6 {[%emt 0:00:09]} 4. Bg2 {[%emt 0:00:17]} Be7 {[%emt 0:00:47]} 5. O-O {[%emt 0:00:11]} O-O {[%emt 0:00:07]} 6. c4 {[%emt 0:02:08]} d6 {[%emt 0:00:14]} 7. Nc3 {[%emt 0:00:33]} Qe8 {[%emt 0:00:58]} 8. h3 {[%emt 0:02:56]} Ne4 {[%emt 0:12:01]} 9. Qd3 {[%emt 0:04:36]} Nxc3 {[%emt 0:00:41]} 10. bxc3 {[%emt 0:00:38]} Nc6 {[%emt 0:12:10]} 11. e4 {[%emt 0:09:20]} Qh5 {[%emt 0:16:35]} 12. exf5 {[%emt 0:07:23]} Qxf5 {[%emt 0:01:41]} 13. Qxf5 {[%emt 0:00:37]} Rxf5 {[%emt 0:01:16]} 14. Be3 {[%emt 0:01:49]} Bd7 {[%emt 0:01:37]} 15. Nd2 {[%emt 0:02:36]} Raf8 {[%emt 0:01:54]} 16. g4 {[%emt 0:05:12]} Ra5 {[%emt 0:03:02]} 17. f4 {[%emt 0:01:45]} Ra3 {[%emt 0:01:59]} 18. Nb3 {[%emt 0:01:37]} Na5 {[%emt 0:02:08]} 19. Nxa5 {[%emt 0:02:58]} Rxa5 {[%emt 0:02:11]} 20. Rfb1 {[%emt 0:06:24]} b6 {[%emt 0:00:17]} 21. Bd2 {[%emt 0:00:42]} g5 {[%emt 0:06:08]} 22. fxg5 {[%emt 0:03:46]} Bxg5 {[%emt 0:00:02]} 23. Bxg5 {[%emt 0:00:21]} Rxg5 {[%emt 0:00:02]} 24. Rf1 {[%emt 0:00:16]} h5 {[%emt 0:02:22]} 25. Rxf8+ {[%emt 0:02:31]} Kxf8 {[%emt 0:00:01]} 26. Rf1+ {[%emt 0:01:09]} Kg7 {[%emt 0:00:35]} 27. gxh5 {[%emt 0:00:54]} Rxh5 {[%emt 0:01:41]} 28. Re1 {[%emt 0:02:05]} Ra5 {[%emt 0:00:58]} 29. Re2 {[%emt 0:00:55]} Ra3 {[%emt 0:00:06]} 30. Rc2 {[%emt 0:00:57]} Ba4 {[%emt 0:00:34]} 31. Re2 {[%emt 0:00:20]} Rxc3 {[%emt 0:00:42]} 32. Rxe6 {[%emt 0:00:34]} Rxc4 {[%emt 0:00:08]} 33. Re4 {[%emt 0:01:28]} Rc2 {[%emt 0:01:26]} 34. Rg4+ {[%emt 0:00:22]} Kf6 {[%emt 0:00:43]} 35. Rf4+ {[%emt 0:01:00]} Ke7 {[%emt 0:01:00]} 36. Bd5 {[%emt 0:00:49]} Be8 {[%emt 0:00:40]} 37. Bb3 {[%emt 0:00:29]} Re2 {[%emt 0:00:12]} 38. Kf1 {[%emt 0:01:08]} Rh2 {[%emt 0:00:33]} 39. h4 {[%emt 0:00:24]} c5 {[%emt 0:00:40]} 40. Re4+ {[%emt 0:00:56]} Kd8 {[%emt 0:00:25]} 41. Re6 {[%emt 0:00:59]} Rxh4 {[%emt 0:00:31]} 42. Rxd6+ {[%emt 0:00:14]} Kc7 {[%emt 0:00:12]} 43. dxc5 {[%emt 0:00:07]} bxc5 {[%emt 0:00:10]} 44. Re6 {[%emt 0:00:43]} Bb5+ {[%emt 0:00:26]} 45. Kg1 {[%emt 0:01:09]} c4 {[%emt 0:01:09]} 46. Bc2 {[%emt 0:00:30]} Bc6 {[%emt 0:00:34]} 47. Re2 {[%emt 0:02:26]} Kd6 {[%emt 0:00:38]} 48. Kf2 {[%emt 0:00:28]} Kc5 {[%emt 0:00:29]} 49. Ke1 {[%emt 0:01:13]} Rd4 {[%emt 0:00:36]} 50. a3 {[%emt 0:00:25]} c3 {[%emt 0:00:27]} 51. Re5+ {[%emt 0:00:34]} Bd5 {[%emt 0:00:24]} 52. Re7 {[%emt 0:00:36]} Rd2 {[%emt 0:00:29]} 53. Rc7+ {[%emt 0:00:32]} Kd4 {[%emt 0:00:15]} 54. Ba4 {[%emt 0:00:18]} Ra2 {[%emt 0:00:49]} 55. Rd7 {[%emt 0:01:07]} Rxa3 {[%emt 0:00:35]} 56. Bc6 {[%emt 0:00:15]} Ra5 {[%emt 0:00:22]} 57. Bxd5 {[%emt 0:00:12]} Rxd5 {[%emt 0:00:05]} 58. Rxa7 {[%emt 0:00:06]} Kc4 {[%emt 0:00:09]} 59. Rc7+ {[%emt 0:00:36]} Kb3 {[%emt 0:00:04]} 60. Rb7+ {[%emt 0:00:13]} Kc2 {[%emt 0:00:05]} 61. Re7 {[%emt 0:00:30]} Kc1 {[%emt 0:00:21]} 62. Re6 {[%emt 0:00:26]} c2 {[%emt 0:00:16]} 63. Re8 {[%emt 0:00:12]} Rb5 {[%emt 0:00:13]} 64. Rc8 {[%emt 0:01:36]} Kb1 {[%emt 0:00:41]} 65. Kd2 {[%emt 0:00:25]} Rd5+ {[%emt 0:00:09]} 0-1

[Event "SVK Amateur-ch 2020"]
[Site "Topolcany"]
[Date "2020.07.12"]
[Round "4.3"]
[White "Deruelle Sala, Albert"]
[Black "Kalisky, Vladimir"]
[Result "1-0"]
[ECO "A45"]
[WhiteElo "2078"]
[BlackElo "2136"]
[Annotator "ChessBase"]
[PlyCount "77"]
[EventDate "2020.07.10"]
[EventType "swiss"]
[EventCountry "SVK"]
[SourceTitle "playchess.com"]
[Source "ChessBase"]
[SourceQuality "1"]
[TimeControl "3600+30"]

1. d4 {[%emt 0:00:00]} Nf6 {[%emt 0:00:00]} 2. Bg5 {[%emt 0:00:00]} Ne4 {[%emt 0:00:01]} 3. h4 {[%emt 0:01:02]} d5 {[%emt 0:00:56]} 4. Nc3 {[%emt 0:01:44]} Nxc3 {[%emt 0:02:06]} 5. bxc3 {[%emt 0:00:02]} Nd7 {[%emt 0:02:11]} 6. c4 {[%emt 0:03:40]} h6 {[%emt 0:01:23]} 7. Bf4 {[%emt 0:00:15]} e6 {[%emt 0:00:24]} 8. cxd5 {[%emt 0:00:33]} exd5 {[%emt 0:00:07]} 9. Nf3 {[%emt 0:03:03]} Bb4+ {[%emt 0:00:35]} 10. Bd2 {[%emt 0:00:09]} Bd6 {[%emt 0:00:13]} 11. c4 {[%emt 0:01:55]} dxc4 {[%emt 0:02:08]} 12. e4 {[%emt 0:00:11]} b5 {[%emt 0:07:02]} 13. e5 {[%emt 0:01:51]} Ba3 {[%emt 0:04:46]} 14. Qb1 {[%emt 0:01:58]} a6 {[%emt 0:06:13]} 15. Qe4 {[%emt 0:01:00]} Nb6 {[%emt 0:03:11]} 16. Be2 {[%emt 0:01:24]} Nd5 {[%emt 0:00:56]} 17. g4 {[%emt 0:01:14]} Be6 {[%emt 0:01:19]} 18. h5 {[%emt 0:02:55]} Bb2 {[%emt 0:05:19]} 19. Rb1 {[%emt 0:02:51]} Nc3 {[%emt 0:00:49]} 20. Bxc3 {[%emt 0:00:47]} Bxc3+ {[%emt 0:00:02]} 21. Kf1 {[%emt 0:00:12]} Bd5 {[%emt 0:01:58]} 22. Qf4 {[%emt 0:00:40]} Qd7 {[%emt 0:04:23]} 23. Rh3 {[%emt 0:02:58]} O-O-O {[%emt 0:02:16]} 24. Nh4 {[%emt 0:08:43]} Bxd4 {[%emt 0:01:08]} 25. Nf5 {[%emt 0:00:14]} Bc5 {[%emt 0:04:46]} 26. Nxg7 {[%emt 0:01:54]} Qc6 {[%emt 0:03:09]} 27. Rg3 {[%emt 0:02:37]} Kb8 {[%emt 0:02:33]} 28. a4 {[%emt 0:01:10]} Be4 {[%emt 0:00:47]} 29. axb5 {[%emt 0:00:48]} axb5 {[%emt 0:00:07]} 30. Rxb5+ {[%emt 0:03:34]} Bb6 {[%emt 0:00:57]} 31. Rxb6+ {[%emt 0:01:00]} cxb6 {[%emt 0:00:07]} 32. e6+ {[%emt 0:00:21]} Kb7 {[%emt 0:00:21]} 33. Qxf7+ {[%emt 0:01:00]} Qc7 {[%emt 0:01:12]} 34. e7 {[%emt 0:01:31]} Ra8 {[%emt 0:00:45]} 35. Bxc4 {[%emt 0:00:32]} Qd7 {[%emt 0:01:23]} 36. e8=Q {[%emt 0:01:02]} Ra1+ {[%emt 0:00:36]} 37. Ke2 {[%emt 0:00:03]} Bd3+ {[%emt 0:01:25]} 38. Bxd3 {[%emt 0:02:04]} Rxe8+ {[%emt 0:00:02]} 39. Nxe8 {[%emt 0:00:38]} 1-0

[Event "SVK Amateur-ch 2020"]
[Site "Topolcany"]
[Date "2020.07.13"]
[Round "4.5"]
[White "Mirowska Oliwia"]
[Black "Sarkozi Szabolcs"]
[Result "0-1"]
[ECO "B33"]
[WhiteElo "1898"]
[BlackElo "2123"]
[Annotator "ChessBase"]
[PlyCount "62"]
[EventDate "2020.07.10"]
[EventType "swiss"]
[EventCountry "SVK"]
[TimeControl "3600+30"]

1. e4 {[%emt 0:00:00]} c5 {[%emt 0:08:13]} 2. Nf3 {[%emt 0:00:32]} Nc6 {[%emt 0:00:05]} 3. d4 {[%emt 0:00:08]} cxd4 {[%emt 0:00:02]} 4. Nxd4 {[%emt 0:00:11]} Nf6 {[%emt 0:00:02]} 5. Nc3 {[%emt 0:00:15]} e5 {[%emt 0:00:03]} 6. Ndb5 {[%emt 0:00:10]} d6 {[%emt 0:00:05]} 7. Bg5 {[%emt 0:00:18]} a6 {[%emt 0:00:17]} 8. Na3 {[%emt 0:00:07]} b5 {[%emt 0:00:11]} 9. Nd5 {[%emt 0:01:43]} Be7 {[%emt 0:02:40]} 10. Bxf6 {[%emt 0:00:36]} Bxf6 {[%emt 0:00:02]} 11. c3 {[%emt 0:01:02]} O-O {[%emt 0:01:34]} 12. Nc2 {[%emt 0:00:39]} Rb8 {[%emt 0:02:22]} 13. Bd3 {[%emt 0:01:24]} Bg5 {[%emt 0:00:48]} 14. Nce3 {[%emt 0:04:21]} a5 {[%emt 0:03:52]} 15. Qh5 {[%emt 0:05:47]} Be6 {[%emt 0:02:13]} 16. h4 {[%emt 0:01:31]} Bxe3 {[%emt 0:02:33]} 17. Nxe3 {[%emt 0:05:52]} b4 {[%emt 0:04:49]} 18. Nf5 {[%emt 0:02:47]} Bxf5 {[%emt 0:07:35]} 19. exf5 {[%emt 0:00:33]} e4 {[%emt 0:00:51]} 20. Be2 {[%emt 0:11:48]} bxc3 {[%emt 0:02:53]} 21. bxc3 {[%emt 0:00:09]} Qf6 {[%emt 0:00:23]} 22. O-O {[%emt 0:01:54]} Ne7 {[%emt 0:01:21]} 23. f3 {[%emt 0:08:38]} e3 {[%emt 0:02:11]} 24. Rac1 {[%emt 0:03:34]} Rb2 {[%emt 0:07:42]} 25. Bd3 {[%emt 0:00:55]} Nd5 {[%emt 0:00:51]} 26. f4 {[%emt 0:01:19]} Nxc3 {[%emt 0:02:39]} 27. Kh1 {[%emt 0:06:50]} Nxa2 {[%emt 0:04:16]} 28. Rce1 {[%emt 0:00:38]} Nb4 {[%emt 0:01:25]} 29. Bb1 {[%emt 0:00:25]} Re8 {[%emt 0:00:54]} 30. Qg4 {[%emt 0:01:37]} e2 {[%emt 0:01:17]} 31. Rg1 {[%emt 0:02:08]} d5 {[%emt 0:03:14]} 0-1

[Event "SVK Amateur-ch 2020"]
[Site "Topolcany"]
[Date "2020.07.12"]
[Round "4.9"]
[White "Holly, Andrej"]
[Black "Oprea, Erik"]
[Result "0-1"]
[ECO "A10"]
[WhiteElo "2011"]
[BlackElo "2113"]
[Annotator "RC"]
[PlyCount "146"]
[EventDate "2020.07.10"]
[EventType "swiss"]
[EventCountry "SVK"]
[SourceTitle "playchess.com"]
[Source "ChessBase"]
[SourceQuality "1"]
[TimeControl "3600+30"]

1. c4 {[%emt 0:00:00]} d6 {[%emt 0:00:00]} 2. g3 {[%emt 0:00:00]} e5 {[%emt 0:00:00]} 3. Bg2 {[%emt 0:00:02]} Nf6 {[%emt 0:00:11]} 4. Nc3 {[%emt 0:00:12]} c6 {[%emt 0:00:06]} 5. d3 {[%emt 0:00:41]} Be7 {[%emt 0:00:18]} 6. e4 {[%emt 0:00:46]} Nbd7 {[%emt 0:00:32]} 7. Nge2 {[%emt 0:00:20]} Qc7 {[%emt 0:00:38]} 8. O-O {[%emt 0:00:07]} O-O {[%emt 0:00:33]} 9. h3 {[%emt 0:00:43]} a6 {[%emt 0:00:26]} 10. b4 {[%emt 0:04:15]} a5 {[%emt 0:00:58]} 11. b5 {[%emt 0:02:01]} Re8 {[%emt 0:03:08]} 12. Be3 {[%emt 0:00:53]} c5 {[%emt 0:01:47]} 13. f4 {[%emt 0:01:35]} Bf8 {[%emt 0:00:40]} 14. f5 {[%emt 0:01:41]} Nb6 {[%emt 0:01:05]} 15. g4 {[%emt 0:02:13]} h6 {[%emt 0:03:41]} 16. Qe1 {[%emt 0:02:14]} Be7 {[%emt 0:01:28]} 17. Rf3 {[%emt 0:09:11]} Qd8 {[%emt 0:00:45]} 18. Bf2 {[%emt 0:03:35]} Nh7 {[%emt 0:01:34]} 19. h4 {[%emt 0:00:46]} Rf8 {[%emt 0:01:36]} 20. Rh3 {[%emt 0:01:50]} Bd7 {[%emt 0:01:11]} 21. Be3 {[%emt 0:01:15]} f6 {[%emt 0:03:33]} 22. Qg3 {[%emt 0:03:47]} Be8 {[%emt 0:00:37]} 23. Bf3 {[%emt 0:00:58]} Bf7 {[%emt 0:00:50]} 24. Kf2 {[%emt 0:02:25]} a4 {[%emt 0:00:28]} 25. Nd5 {[%emt 0:01:39]} Nxd5 {[%emt 0:05:00]} 26. exd5 {[%emt 0:00:03]} Be8 {[%emt 0:08:07]} 27. Rg1 {[%emt 0:02:59]} a3 {[%emt 0:01:06]} 28. Nc3 {[%emt 0:03:23]} Qa5 {[%emt 0:01:08]} 29. Bd2 {[%emt 0:02:12]} Qb4 {[%emt 0:03:42]} 30. Rb1 {[%emt 0:01:27]} Qa5 {[%emt 0:00:08]} 31. b6 {[%emt 0:02:05]} Ra6 {[%emt 0:02:43]} 32. Ne4 {[%emt 0:02:59]} Qa4 {[%emt 0:00:18]} 33. Rb3 {[%emt 0:01:33]} Qd7 {[%emt 0:01:13]} 34. Rh1 {[%emt 0:00:19]} Qd8 {[%emt 0:02:52]} 35. Rhb1 {[%emt 0:04:33]} Ba4 {[%emt 0:01:25]} 36. Rxa3 {[%emt 0:00:45]} Bc2 {[%emt 0:00:09]} 37. Rxa6 {[%emt 0:00:14]} Bxb1 {[%emt 0:00:09]} 38. Ra3 {[%emt 0:00:09]} Bc2 {[%emt 0:04:07]} 39. Ba5 {[%emt 0:00:53]} Qd7 {[%emt 0:02:13]} 40. Ke3 {[%emt 0:01:39]} Ra8 {[%emt 0:01:22]} 41. Qe1 {[%emt 0:02:37]} Ba4 {[%emt 0:03:18]} 42. Bd1 {[%emt 0:01:07]} Bxd1 {[%emt 0:04:22]} 43. Qxd1 {[%emt 0:00:01]} h5 {[%emt 0:03:59]} 44. Ng3 {[%emt 0:03:10]} hxg4 {[%emt 0:00:31]} 45. Qxg4 {[%emt 0:01:25]} Bd8 {[%emt 0:00:12]} 46. Bb4 {[%emt 0:01:03]} Rxa3 {[%emt 0:00:23]} 47. Bxa3 {[%emt 0:00:03]} Bxb6 {[%emt 0:00:13]} 48. Qg6 {[%emt 0:02:04]} Bd8 {[%emt 0:03:45]} 49. Bc1 {[%emt 0:00:45]} Be7 {[%emt 0:00:52]} 50. Ke4 {[%emt 0:01:58]} Nf8 {[%emt 0:03:11]} 51. Qg4 {[%emt 0:00:36]} Nh7 {[%emt 0:01:18]} 52. Qg6 {[%emt 0:01:13]} Nf8 {[%emt 0:00:05]} 53. Qg4 {[%emt 0:00:21]} Nh7 {[%emt 0:00:58]} 54. Nh5 {[%emt 0:01:15]} Bf8 {[%emt 0:00:47]} 55. Qg6 {[%emt 0:00:46]} Kh8 {[%emt 0:00:57]} 56. Ng3 {[%emt 0:00:35]} Qa4 {[%emt 0:00:15]} 57. Be3 {[%emt 0:00:36]} Qxa2 {[%emt 0:00:07]} 58. Nh5 {[%emt 0:00:16]} Qh2 {[%emt 0:00:37]} 59. Kf3 {[%emt 0:00:46]} Qxh4 {[%emt 0:00:21]} 60. Ng3 {[%emt 0:00:18]} Qh2 {[%emt 0:00:50]} 61. Qf7 {[%emt 0:00:17]} Qc2 {[%emt 0:00:51]} 62. Qxb7 {[%emt 0:00:38]} Qxd3 {[%emt 0:00:08]} 63. Ne4 {[%emt 0:00:30]} Qxc4 {[%emt 0:00:22]} 64. Qa8 {[%emt 0:00:19]} Qf1+ {[%emt 0:00:23]} 65. Bf2 {[%emt 0:00:04]} Qh3+ {[%emt 0:00:17]} 66. Ng3 {[%emt 0:00:29]} Kg8 {[%emt 0:00:25]} 67. Qe8 {[%emt 0:00:23]} Ng5+ {[%emt 0:00:08]} 68. Ke2 {[%emt 0:00:26]} Qg4+ {[%emt 0:00:06]} 69. Kf1 {[%emt 0:00:25]} Qf3 {[%emt 0:00:18]} 70. Qg6 {[%emt 0:00:27]} Nh3 {[%emt 0:00:39]} 71. Nh1 {[%emt 0:01:04]} Qxh1+ {[%emt 0:00:08]} 72. Ke2 {[%emt 0:00:14]} Qe4+ {[%emt 0:00:12]} 73. Kf1 {[%emt 0:00:12]} Qf3 {[%emt 0:00:32]} 0-1

[Event "SVK Amateur-ch 2020"]
[Site "Topolcany"]
[Date "2020.07.13"]
[Round "4.10"]
[White "Trasakova Adela"]
[Black "Cedzo Adam"]
[Result "1-0"]
[ECO "A48"]
[WhiteElo "1660"]
[BlackElo "1974"]
[Annotator "ChessBase"]
[PlyCount "77"]
[EventDate "2020.07.10"]
[EventType "swiss"]
[EventCountry "SVK"]
[TimeControl "3600+30"]

1. d4 {[%emt 0:00:00]} Nf6 {[%emt 0:00:00]} 2. Nf3 {[%emt 0:00:00]} d6 {[%emt 0:00:36]} 3. Bf4 {[%emt 0:00:39]} g6 {[%emt 0:01:54]} 4. Nbd2 {[%emt 0:00:51]} Bg7 {[%emt 0:00:24]} 5. e4 {[%emt 0:00:48]} Nbd7 {[%emt 0:01:19]} 6. Bc4 {[%emt 0:01:36]} O-O {[%emt 0:00:13]} 7. O-O {[%emt 0:00:49]} Nb6 {[%emt 0:03:58]} 8. Bb3 {[%emt 0:01:13]} Bg4 {[%emt 0:04:05]} 9. c3 {[%emt 0:01:34]} c6 {[%emt 0:05:25]} 10. h3 {[%emt 0:01:51]} Bd7 {[%emt 0:03:06]} 11. e5 {[%emt 0:04:12]} Ne8 {[%emt 0:10:01]} 12. Ng5 {[%emt 0:07:13]} d5 {[%emt 0:02:22]} 13. Bh2 {[%emt 0:04:22]} Nc7 {[%emt 0:09:33]} 14. f4 {[%emt 0:04:39]} f6 {[%emt 0:04:09]} 15. Ngf3 {[%emt 0:03:05]} Nc8 {[%emt 0:03:49]} 16. Qe1 {[%emt 0:05:12]} fxe5 {[%emt 0:02:19]} 17. fxe5 {[%emt 0:03:07]} e6 {[%emt 0:01:18]} 18. Qe3 {[%emt 0:04:30]} Ne7 {[%emt 0:02:57]} 19. g4 {[%emt 0:01:37]} Be8 {[%emt 0:02:23]} 20. Bf4 {[%emt 0:02:56]} Kh8 {[%emt 0:04:33]} 21. Bh6 {[%emt 0:02:39]} Bxh6 {[%emt 0:00:19]} 22. Qxh6 {[%emt 0:00:08]} Ng8 {[%emt 0:01:59]} 23. Qxf8 {[%emt 0:04:38]} Qd7 {[%emt 0:00:30]} 24. Ng5 {[%emt 0:00:30]} h6 {[%emt 0:00:30]} 25. Nf7+ {[%emt 0:03:03]} Kh7 {[%emt 0:00:10]} 26. Qd6 {[%emt 0:01:40]} Qc8 {[%emt 0:02:16]} 27. a4 {[%emt 0:04:40]} Kg7 {[%emt 0:00:30]} 28. Rf2 {[%emt 0:00:30]} Bxf7 {[%emt 0:00:30]} 29. Raf1 {[%emt 0:00:25]} Be8 {[%emt 0:00:04]} 30. Qf8+ {[%emt 0:00:41]} Kh8 {[%emt 0:00:33]} 31. h4 {[%emt 0:01:37]} Qd8 {[%emt 0:00:21]} 32. Rh2 {[%emt 0:00:53]} Bd7 {[%emt 0:01:14]} 33. Qf3 {[%emt 0:01:00]} Be8 {[%emt 0:01:27]} 34. Bc2 {[%emt 0:01:07]} Qe7 {[%emt 0:00:34]} 35. Kh1 {[%emt 0:00:44]} Kg7 {[%emt 0:00:40]} 36. h5 {[%emt 0:00:27]} g5 {[%emt 0:00:57]} 37. Qd3 {[%emt 0:00:19]} Bf7 {[%emt 0:00:54]} 38. Qh7+ {[%emt 0:00:34]} Kf8 {[%emt 0:00:03]} 39. Rg2 {[%emt 0:00:16]} 1-0